[Event "Reykjavik Open 2025"]
[Site "Reykjavik"]
[Date "2025.04.13"]
[Round "7.44"]
[White "Muetsch, Annmarie"]
[Black "Adams, Henry"]
[Result "0-1"]
[Annotator "ChessBase"]
[ECO "C58"]
[WhiteElo "2329"]
[BlackElo "2077"]
[PlyCount "104"]
[EventDate "2025.04.09"]
[EventType "swiss"]
[EventCountry "ISL"]
[SourceTitle "playchess.com"]
[Source "ChessBase"]
[SourceQuality "1"]
[TimeControl "40/5400+30:1800+30"]

1. e4 {[%emt 0:00:19]} e5 {[%emt 0:00:06]} 2. Nf3 {[%emt 0:00:07]} Nc6 {[%emt 0:00:04]} 3. Bc4 {[%emt 0:00:08]} Nf6 {[%emt 0:00:05]} 4. Ng5 {[%emt 0:00:47]} d5 {[%emt 0:00:06]} 5. exd5 {[%emt 0:00:07]} Na5 {[%emt 0:00:04]} 6. Bb5+ {[%emt 0:00:06]} c6 {[%emt 0:00:03]} 7. dxc6 {[%emt 0:00:06]} bxc6 {[%emt 0:00:04]} 8. Bd3 {[%emt 0:01:06]} Nd5 {[%emt 0:02:01]} 9. h4 {[%emt 0:00:09]} Qc7 {[%emt 0:01:39]} 10. Nc3 {[%emt 0:17:11]} h6 {[%emt 0:10:22]} 11. Nf3 {[%emt 0:04:49]} Nf4 {[%emt 0:04:49]} 12. Bf1 {[%emt 0:03:21]} Bg4 {[%emt 0:22:04]} 13. d3 {[%emt 0:04:43]} Ne6 {[%emt 0:02:02]} 14. Be2 {[%emt 0:02:48]} Bd6 {[%emt 0:04:58]} 15. Ne4 {[%emt 0:04:42]} Be7 {[%emt 0:01:20]} 16. c3 {[%emt 0:07:52]} O-O {[%emt 0:05:53]} 17. b4 {[%emt 0:08:27]} Nb7 {[%emt 0:00:17]} 18. Qb3 {[%emt 0:00:31]} a5 {[%emt 0:01:57]} 19. Qc4 {[%emt 0:04:31]} axb4 {[%emt 0:05:38]} 20. cxb4 {[%emt 0:00:24]} Rfd8 {[%emt 0:06:37]} 21. O-O {[%emt 0:17:35]} Nd4 {[%emt 0:02:06]} 22. Nxd4 {[%emt 0:00:47]} Rxd4 {[%emt 0:00:07]} 23. Qc2 {[%emt 0:00:45]} Be6 {[%emt 0:05:09]} 24. b5 {[%emt 0:04:39]} c5 {[%emt 0:04:35]} 25. Bb2 {[%emt 0:04:01]} Rda4 {[%emt 0:01:38]} 26. f4 {[%emt 0:00:27]} exf4 {[%emt 0:02:18]} 27. Qc3 {[%emt 0:00:02]} Rd4 {[%emt 0:00:59]} 28. Qd2 {[%emt 0:01:36]} Rb4 {[%emt 0:00:55]} 29. Bc3 {[%emt 0:01:57]} Rba4 {[%emt 0:02:18]} 30. a3 {[%emt 0:02:29]} f5 {[%emt 0:00:56]} 31. Nf2 {[%emt 0:00:43]} Rxa3 {[%emt 0:01:02]} 32. Rxa3 {[%emt 0:01:05]} Rxa3 {[%emt 0:00:01]} 33. Nh3 {[%emt 0:01:47]} Bxh4 {[%emt 0:03:09]} 34. Nxf4 {[%emt 0:00:30]} Bf7 {[%emt 0:00:18]} 35. Bxg7 {[%emt 0:01:56]} Bg5 {[%emt 0:03:01]} 36. Bb2 {[%emt 0:00:23]} Rb3 {[%emt 0:00:59]} 37. Ba1 {[%emt 0:00:44]} Nd6 {[%emt 0:06:01]} 38. Be5 {[%emt 0:01:41]} Qe7 {[%emt 0:00:33]} 39. Ba1 {[%emt 0:03:14]} Nxb5 {[%emt 0:00:56]} 40. g3 {[%emt 0:01:01]} Nd4 {[%emt 0:01:18]} 41. Bd1 {[%emt 0:06:06]} Rb1 {[%emt 0:03:56]} 42. Bxd4 {[%emt 0:02:58]} cxd4 {[%emt 0:00:07]} 43. Bf3 {[%emt 0:00:09]} Rb3 {[%emt 0:04:42]} 44. Re1 {[%emt 0:02:18]} Qd6 {[%emt 0:04:03]} 45. Ra1 {[%emt 0:05:04]} Qb6 {[%emt 0:03:48]} 46. Qe2 {[%emt 0:07:23]} Qc7 {[%emt 0:02:40]} 47. Bh5 {[%emt 0:05:53]} Bxf4 {[%emt 0:03:11]} 48. gxf4 {[%emt 0:01:05]} Rb6 {[%emt 0:04:05]} 49. Bxf7+ {[%emt 0:01:55]} Qxf7 {[%emt 0:00:37]} 50. Ra8+ {[%emt 0:00:36]} Kh7 {[%emt 0:02:21]} 51. Re8 {[%emt 0:02:12]} Rb7 {[%emt 0:00:00]} 52. Qe5 {[%emt 0:00:41]} Qg6+ {[%emt 0:00:43]} 0-1